bitfinex-derivatives/quotes_BTCF0:USTF0_20241104
["timestamp","ask_amount","ask_price","bid_price","bid_amount"]
[1730741468449,0.0645332,67913.0,67912.0,0.07567]
[1730741468657,0.13820418,67913.0,67912.0,0.07567]
[1730741468960,0.06453318,67913.0,67912.0,0.07567]
[1730741469156,0.02845707,67913.0,67912.0,0.076672]
[1730741469363,0.07367,67914.0,67912.0,0.076672]
[1730741469561,0.10975272,67913.0,67912.0,0.076672]
[1730741469758,0.10975259,67913.0,67912.0,0.076672]
[1730741469957,0.10975259,67913.0,67912.0,0.003]
[1730741470164,0.073671,67914.0,67913.0,0.07367]
[1730741470348,0.18342989,67914.0,67913.0,0.07367]
[1730741470957,0.10975889,67914.0,67913.0,0.07367]
[1730741471762,0.073668,67916.0,67915.0,0.073669]
[1730741472152,0.073668,67916.0,67915.0,0.13247226]
[1730741472463,0.073668,67916.0,67915.0,0.073669]
[1730741473165,0.074668,67916.0,67915.0,0.073669]
[1730741473360,0.074668,67916.0,67915.0,0.13247]
[1730741473555,0.075668,67916.0,67915.0,0.13247]
[1730741473761,0.002,67916.0,67915.0,0.073669]
[1730741474459,0.002,67916.0,67915.0,0.27499044]
[1730741474659,0.002,67916.0,67915.0,0.82222965]
[1730741474861,0.250749,67934.0,67933.0,0.073649]
[1730741475751,0.160048,67934.0,67933.0,0.073649]
[1730741475957,0.160048,67934.0,67933.0,0.001]
[1730741475958,0.161048,67934.0,67933.0,0.001]
[1730741476161,0.162048,67934.0,67933.0,0.002]
[1730741476959,0.075648,67934.0,67933.0,0.002]
[1730741477167,0.001,67934.0,67933.0,0.001]
[1730741477365,0.002,67934.0,67933.0,0.075649]
[1730741477754,0.002,67934.0,67933.0,0.11974242]
[1730741478354,0.002,67934.0,67933.0,0.075649]
[1730741478755,0.11072185,67934.0,67928.0,0.00435843]
[1730741478958,0.16254526,67933.0,67932.0,0.07365]
[1730741479273,0.10972185,67933.0,67932.0,0.07365]
[1730741479661,0.10972185,67933.0,67932.0,1.57365]
[1730741480558,0.10972185,67933.0,67932.0,1.57465]
[1730741481666,0.07292089,67933.0,67932.0,1.57465]
[1730741481967,0.07392089,67933.0,67932.0,1.57565]
[1730741482364,0.11072186,67933.0,67932.0,1.57565]
[1730741482566,0.0655154,67933.0,67932.0,1.57565]
[1730741483869,0.1391644,67933.0,67932.0,0.07565]
[1730741484170,0.19198781,67933.0,67932.0,0.002]
[1730741485880,0.19198781,67933.0,67932.0,0.07565]
[1730741486775,0.10309823,67933.0,67932.0,0.07565]
[1730741489370,0.10309823,67933.0,67932.0,0.1124515]
[1730741491691,0.10309941,67933.0,67932.0,0.1124515]
[1730741493781,0.13916707,67933.0,67928.0,0.00088086]
[1730741493988,0.16255204,67932.0,67927.0,0.0893]
[1730741494182,0.16145587,67928.0,67927.0,0.162956]
[1730741494380,0.06451807,67928.0,67927.0,0.29074992]
[1730741494781,0.10972643,67928.0,67927.0,0.29074992]
[1730741494982,0.16254914,67928.0,67927.0,0.20068664]
[1730741495190,0.10972643,67928.0,67927.0,0.20068664]
[1730741495880,0.11072643,67928.0,67927.0,0.20068664]
[1730741496192,0.11072643,67928.0,67927.0,0.20686284]
[1730741496385,0.11172163,67928.0,67927.0,0.64850284]
[1730741497477,0.11172163,67928.0,67927.0,0.52070892]
[1730741497684,0.16454434,67928.0,67927.0,0.52070892]
[1730741497888,0.07492013,67928.0,67927.0,0.52070892]
[1730741501786,0.0916,67933.0,67927.0,0.52070892]
[1730741501984,0.162241,67941.0,67940.0,0.073642]
[1730741503189,0.253841,67941.0,67940.0,0.073642]
[1730741504686,0.1812,67941.0,67940.0,0.074642]
[1730741504884,0.001,67941.0,67940.0,0.56323592]
[1730741505082,0.3708,67950.0,67940.0,1.00479592]
[1730741505285,0.01,67950.0,67949.0,0.56222592]
[1730741505484,0.01,67950.0,67949.0,1.00374592]
[1730741505695,0.01,67950.0,67949.0,1.30374592]
[1730741505895,0.0876,67958.0,67949.0,2.80374592]
[1730741506099,0.0876,67958.0,67957.0,0.073623]
[1730741506397,0.0876,67958.0,67957.0,0.434423]
[1730741506596,0.0876,67958.0,67957.0,0.073623]
[1730741507201,0.073628,67954.0,67953.0,0.073627]
[1730741508386,0.0876,67958.0,67957.0,0.073623]
[1730741508788,0.15209571,67958.0,67957.0,0.073623]
[1730741509497,0.15209571,67958.0,67953.0,0.002]
[1730741509699,0.073627,67954.0,67953.0,0.002]
[1730741509902,0.10968976,67954.0,67941.0,0.36690797]
[1730741510089,0.073633,67949.0,67948.0,0.073632]
[1730741510290,0.13812871,67949.0,67948.0,0.073632]
[1730741511387,0.06449571,67949.0,67948.0,0.073632]
[1730741511588,0.073629,67952.0,67941.0,0.49470189]
[1730741511789,0.073629,67952.0,67951.0,0.07363]
[1730741511997,0.06450225,67952.0,67951.0,0.07363]
[1730741512900,0.06550225,67952.0,67951.0,1.57363]
[1730741513399,0.06650225,67952.0,67951.0,1.57363]
[1730741513900,0.03044343,67952.0,67951.0,1.57363]
[1730741514212,0.03044343,67952.0,67951.0,1.57463]
[1730741514213,0.03144343,67952.0,67951.0,1.57463]
[1730741514593,0.03144148,67952.0,67951.0,1.57463]
[1730741515403,0.10507048,67952.0,67951.0,1.57463]
[1730741516490,4.8e-07,67952.0,67951.0,2.80470392]
[1730741516698,0.0138,67969.0,67966.0,0.073614]
[1730741516898,0.3648,67974.0,67965.0,0.3608]
[1730741516899,0.073606,67973.0,67965.0,0.3608]
[1730741517102,0.073606,67973.0,67972.0,0.073607]
[1730741517492,0.073606,67973.0,67957.0,0.3608]
[1730741517493,0.073614,67966.0,67965.0,0.073614]
[1730741517694,0.56220592,67968.0,67967.0,0.073612]
[1730741517900,0.56983034,67968.0,67967.0,0.073612]
[1730741518096,0.64344134,67968.0,67967.0,0.073612]
[1730741518804,0.69624412,67968.0,67964.0,0.05144858]
[1730741519004,0.073615,67965.0,67964.0,0.05144858]
[1730741519196,0.23492932,67965.0,67964.0,0.05144858]
[1730741519501,0.15485142,67965.0,67964.0,0.05144858]
[1730741520405,0.15485142,67965.0,67964.0,0.05244858]
[1730741521205,0.15685142,67965.0,67964.0,0.05344858]
[1730741521507,0.03805008,67965.0,67964.0,0.05344858]
[1730741524505,0.002,67965.0,67964.0,0.05344858]
[1730741528207,0.075615,67965.0,67964.0,0.05344858]
[1730741529208,0.002,67965.0,67964.0,0.05344858]
[1730741530215,0.002,67965.0,67964.0,1.91424858]
[1730741531416,0.03043572,67965.0,67964.0,1.91424858]
[1730741531603,0.03043572,67965.0,67964.0,1.55344858]
[1730741533398,0.0304356,67965.0,67964.0,1.55344858]
[1730741534208,0.1040506,67965.0,67964.0,1.55344858]
[1730741534510,0.1040506,67965.0,67964.0,1.59023275]
[1730741535011,0.1040506,67965.0,67964.0,0.03878417]
[1730741535406,0.1040506,67965.0,67964.0,0.11240017]
[1730741535606,0.1040506,67965.0,67964.0,0.03878417]
[1730741536201,0.073619,67962.0,67955.0,0.00084]
[1730741536403,0.073624,67958.0,67957.0,0.073622]
[1730741536603,0.3608,67958.0,67957.0,0.20141592]
[1730741536816,0.434422,67958.0,67957.0,0.073622]
[1730741537111,0.608722,67958.0,67957.0,0.073622]
[1730741538304,0.5351,67958.0,67957.0,0.073622]
[1730741538807,0.5381,67958.0,67957.0,0.073622]
[1730741539410,0.701022,67958.0,67957.0,0.073622]
[1730741540011,0.702022,67958.0,67957.0,0.073622]
[1730741540210,0.702022,67958.0,67957.0,0.08129911]
[1730741540921,0.6284,67958.0,67957.0,0.20909303]
[1730741541218,0.702022,67958.0,67957.0,0.08129911]
[1730741541407,0.6284,67958.0,67957.0,0.08129911]
[1730741541809,0.2676,67958.0,67957.0,0.08129911]
[1730741542916,0.004,67958.0,67957.0,0.08129911]
[1730741544016,0.077622,67958.0,67957.0,0.08129911]
[1730741544216,0.077622,67958.0,67957.0,0.00767711]
[1730741544616,0.07363,67952.0,67951.0,0.08144518]
[1730741545126,0.073627,67955.0,67954.0,0.073626]
[1730741545423,0.073629,67952.0,67951.0,0.2092391]
[1730741545606,0.073629,67952.0,67951.0,0.31675987]
[1730741545607,0.03679234,67952.0,67951.0,0.31675987]
[1730741546014,0.03979234,67952.0,67951.0,0.31675987]
[1730741547521,0.03979234,67952.0,67951.0,0.08144518]
[1730741548422,0.03979234,67952.0,67951.0,0.00781618]
[1730741548622,0.03979234,67952.0,67950.0,0.00220717]
[1730741548920,0.33323,67951.0,67950.0,0.00220717]
[1730741549118,0.33323,67951.0,67942.0,0.051424]
[1730741549119,0.46102392,67951.0,67943.0,0.04410743]
[1730741549337,0.073645,67937.0,67936.0,0.11775243]
[1730741549517,0.073647,67936.0,67935.0,0.073646]
[1730741549719,0.254747,67936.0,67935.0,0.073646]
[1730741551618,0.254747,67936.0,67931.0,0.00792185]
[1730741551822,0.254747,67936.0,67933.0,0.073649]
[1730741551823,0.07365,67934.0,67933.0,0.073649]
[1730741552525,0.30889392,67936.0,67934.0,0.073648]
[1730741552526,0.0839,67935.0,67934.0,0.073648]
[1730741554925,0.0849,67935.0,67934.0,0.073648]
[1730741555331,0.001,67935.0,67934.0,0.073648]
[1730741555723,0.001,67935.0,67934.0,0.14716039]
[1730741555917,0.074647,67935.0,67934.0,0.14716039]
[1730741556127,0.07295144,67935.0,67934.0,0.073648]
[1730741556526,0.07295144,67935.0,67934.0,0.13229685]
[1730741557127,0.07295144,67935.0,67934.0,0.11763665]
[1730741557433,0.073649,67933.0,67930.0,0.04398865]
[1730741557628,0.073654,67929.0,67928.0,0.04398865]
[1730741557833,0.48955392,67931.0,67926.0,0.04398865]
[1730741558027,0.073658,67925.0,67924.0,0.04398865]
[1730741558219,0.434458,67925.0,67924.0,0.04398865]
[1730741558419,0.434458,67925.0,67924.0,0.11764765]
[1730741558620,0.434458,67925.0,67924.0,0.073659]
[1730741559021,0.434458,67925.0,67923.0,0.05170486]
[1730741559227,0.434458,67925.0,67922.0,0.04398865]
[1730741559424,0.434458,67925.0,67920.0,0.073663]
[1730741559425,0.12779392,67923.0,67921.0,0.04398865]
[1730741559631,0.073661,67922.0,67921.0,0.073662]
[1730741559836,0.252961,67922.0,67921.0,0.073662]
[1730741560034,0.252961,67922.0,67917.0,0.05864885]
[1730741560035,0.252961,67922.0,67918.0,0.11759874]
[1730741560240,0.56225792,67919.0,67918.0,0.11759874]
[1730741560435,0.56225792,67919.0,67918.0,0.073666]
[1730741560824,0.073666,67918.0,67917.0,0.04393374]
[1730741561028,0.073666,67918.0,67914.0,0.04393374]
[1730741561330,0.12779392,67915.0,67913.0,0.00220872]
[1730741561528,0.07367,67914.0,67913.0,0.07587972]
[1730741561733,0.07367,67914.0,67913.0,0.11981346]
[1730741561935,0.07367,67914.0,67913.0,0.07587972]
[1730741562628,0.07367,67914.0,67913.0,0.11981346]
[1730741562833,0.07367,67914.0,67913.0,0.12881346]
[1730741563523,0.07367,67914.0,67913.0,0.08487972]
[1730741564223,0.07367,67914.0,67913.0,0.09587972]
[1730741568028,0.083969,67915.0,67914.0,0.07367]
[1730741568434,0.073669,67915.0,67914.0,0.07367]
[1730741569344,0.0103,67916.0,67915.0,0.073669]
[1730741569735,0.48955392,67919.0,67915.0,0.05864885]
[1730741569930,0.12779392,67919.0,67918.0,0.11756889]
[1730741570129,0.12779392,67919.0,67918.0,0.073666]
[1730741570437,0.20145792,67919.0,67918.0,0.073666]
[1730741571041,0.12779392,67919.0,67915.0,0.07464885]
[1730741571339,0.073668,67916.0,67915.0,0.080669]
[1730741571541,0.073668,67916.0,67915.0,0.13231785]
[1730741571750,0.073668,67916.0,67915.0,0.073669]
[1730741571938,0.073668,67916.0,67915.0,0.13231785]
[1730741572332,0.073668,67916.0,67915.0,0.13931785]
[1730741572736,0.073668,67916.0,67915.0,0.080669]
[1730741572935,0.073668,67916.0,67915.0,0.13925623]
[1730741573137,0.073668,67916.0,67915.0,0.14825623]
[1730741573533,0.073668,67916.0,67915.0,0.089669]
[1730741575743,0.073668,67916.0,67915.0,0.19796371]
[1730741577251,0.073668,67916.0,67915.0,0.08938404]
[1730741579147,0.073668,67916.0,67915.0,0.016]
[1730741580647,0.3608,67917.0,67913.0,0.00220872]
[1730741580949,0.3608,67917.0,67908.0,0.07338404]
[1730741580950,0.073671,67913.0,67908.0,0.07338404]
[1730741581150,0.073671,67913.0,67906.0,0.07338404]
[1730741581151,0.073677,67907.0,67906.0,0.07338404]
[1730741581344,0.073679,67906.0,67904.0,0.07338404]
[1730741581551,0.12779392,67905.0,67903.0,0.07338404]
[1730741581747,0.073681,67904.0,67903.0,0.07338404]
[1730741581949,0.073681,67904.0,67900.0,0.07338404]
[1730741582250,0.073681,67904.0,67892.0,0.0022091]
[1730741582251,0.073685,67900.0,67899.0,0.07338404]
[1730741582443,0.48859392,67901.0,67898.0,0.07338404]
[1730741582639,0.073688,67897.0,67896.0,0.14707304]
[1730741582841,0.12779392,67899.0,67898.0,0.073687]
[1730741583059,0.20147992,67899.0,67898.0,0.25572496]
[1730741583444,0.20147992,67899.0,67898.0,0.18231639]
[1730741583853,0.20147992,67899.0,67898.0,0.19631639]
[1730741584155,0.20247992,67899.0,67898.0,0.20831639]
[1730741584658,0.20247992,67899.0,67898.0,0.19431639]
[1730741584958,0.20347992,67899.0,67898.0,0.20831639]
[1730741586350,0.20347992,67899.0,67898.0,0.13462939]
[1730741587052,0.515527,67898.0,67896.0,0.07346687]
[1730741587359,0.073693,67893.0,67892.0,0.0022091]
[1730741587659,0.434493,67893.0,67892.0,0.0022091]
[1730741588163,0.39767307,67893.0,67892.0,0.0022091]
[1730741589362,0.39767307,67893.0,67883.0,0.073703]
[1730741589363,0.073697,67889.0,67883.0,0.073703]
[1730741589559,0.20149092,67889.0,67884.0,0.073702]
[1730741589861,0.64341092,67889.0,67884.0,0.073702]
[1730741590054,0.64341092,67889.0,67882.0,0.073705]
[1730741590650,0.60653712,67889.0,67882.0,0.073705]
[1730741590963,0.07371,67877.0,67875.0,0.073711]
[1730741591159,0.20149792,67883.0,67876.0,0.10755656]
[1730741591455,0.20149792,67883.0,67868.0,0.00220991]
[1730741591456,0.073715,67873.0,67872.0,0.073715]
[1730741591862,0.03688965,67873.0,67872.0,0.073715]
[1730741592758,0.001,67877.0,67876.0,0.073711]
[1730741593057,0.001,67889.0,67888.0,0.073698]
[1730741593565,0.001,67889.0,67888.0,1.573698]
[1730741593971,0.3608,67890.0,67889.0,0.073697]
[1730741596469,0.3678,67890.0,67889.0,0.073697]
[1730741596668,0.3748,67890.0,67889.0,0.074697]
[1730741597368,0.448496,67890.0,67889.0,0.001]
[1730741597573,0.448496,67890.0,67889.0,0.074697]
[1730741597759,0.3748,67890.0,67889.0,0.074697]
[1730741599164,0.38509,67890.0,67889.0,0.074697]
[1730741599964,0.02429,67890.0,67889.0,0.074697]
[1730741600170,0.02429,67890.0,67889.0,0.18137191]
[1730741600759,0.02429,67890.0,67889.0,1.68137191]
[1730741600961,0.3608,67903.0,67902.0,0.073683]
[1730741602474,0.3888,67903.0,67902.0,0.074683]
[1730741602667,0.028,67903.0,67902.0,0.074683]
[1730741603170,0.20147592,67903.0,67902.0,0.073683]
[1730741603361,0.073688,67898.0,67897.0,0.073687]
[1730741603565,0.20148192,67898.0,67897.0,0.073687]
[1730741604275,0.07369,67895.0,67894.0,0.43449]
[1730741606772,0.07469,67895.0,67894.0,0.43449]
[1730741608775,0.07369,67895.0,67894.0,0.07369]
[1730741608980,0.07369,67895.0,67894.0,0.002]
[1730741610275,0.073692,67894.0,67893.0,0.073692]
[1730741610876,0.3608,67889.0,67866.0,0.11737148]
[1730741611179,0.073734,67855.0,67845.0,0.0906]
[1730741611382,0.20152792,67855.0,67854.0,0.10770141]
[1730741611673,0.12779392,67855.0,67847.0,0.073743]
[1730741611886,0.12779392,67848.0,67845.0,0.0076587]
[1730741612070,0.12779392,67848.0,67846.0,0.10788618]
[1730741612272,0.12779392,67848.0,67846.0,0.073743]
[1730741612566,0.12779392,67848.0,67847.0,0.073743]
[1730741613268,0.12779392,67848.0,67846.0,0.073743]
[1730741613467,0.12779392,67848.0,67847.0,0.073743]
[1730741613779,0.12979392,67848.0,67847.0,0.073743]
[1730741613969,0.002,67848.0,67847.0,0.073743]
[1730741614276,0.002,67848.0,67847.0,0.168143]
[1730741614577,0.12979392,67848.0,67847.0,0.168143]
[1730741614777,0.20353592,67848.0,67847.0,0.082743]
[1730741616274,0.002,67848.0,67847.0,0.537903]
[1730741616569,0.13000492,67869.0,67847.0,0.87721622]
[1730741616770,0.002211,67869.0,67868.0,0.07372]
[1730741617574,0.002211,67869.0,67868.0,1.57372]
[1730741617775,0.002211,67869.0,67868.0,1.93452]
[1730741617987,0.12779392,67874.0,67868.0,1.93452]
[1730741618189,0.12779392,67874.0,67873.0,0.073714]
[1730741618679,0.12779392,67879.0,67878.0,0.073709]
[1730741618885,0.12779392,67879.0,67878.0,0.11763318]
[1730741619084,0.12779392,67879.0,67878.0,0.073709]
[1730741620483,0.13079392,67879.0,67878.0,0.073709]
[1730741620782,0.13279392,67879.0,67878.0,0.073709]
[1730741621885,0.13279392,67879.0,67878.0,0.11763503]
[1730741622277,0.005,67879.0,67878.0,0.073709]
[1730741622781,0.005,67879.0,67878.0,0.08141085]
[1730741623682,0.003,67879.0,67878.0,0.08141085]
[1730741623889,0.20149692,67884.0,67883.0,0.073704]
[1730741624385,0.20149692,67884.0,67878.0,0.01670185]
[1730741624386,0.073708,67879.0,67878.0,0.009]
[1730741624585,0.20150192,67879.0,67878.0,0.082709]
[1730741625177,0.20150192,67879.0,67878.0,0.009]
[1730741625381,0.12779392,67883.0,67882.0,0.073703]
[1730741625579,0.073701,67886.0,67878.0,0.004]
[1730741625881,0.073701,67886.0,67885.0,0.073701]
[1730741626486,0.3608,67886.0,67883.0,0.003]
[1730741626788,0.3608,67886.0,67878.0,0.002]
[1730741626789,0.434501,67886.0,67885.0,0.073701]
[1730741627479,0.440501,67886.0,67885.0,0.074701]
[1730741628784,0.446501,67886.0,67885.0,0.002]
[1730741629088,0.446501,67886.0,67885.0,0.001]
[1730741629089,0.440501,67886.0,67885.0,0.001]
[1730741629289,0.440501,67886.0,67885.0,0.002]
[1730741629879,0.434501,67886.0,67885.0,0.001]
[1730741630083,0.436501,67886.0,67885.0,0.004]
[1730741631493,0.436501,67886.0,67885.0,0.073701]
[1730741631787,0.44798,67897.0,67893.0,0.073693]
[1730741631985,0.36188,67897.0,67894.0,0.073692]
[1730741632199,0.3608,67897.0,67894.0,1.573692]
[1730741632991,0.07,67895.0,67894.0,1.573692]
[1730741633196,0.071,67895.0,67894.0,1.580692]
[1730741633899,0.07,67895.0,67894.0,1.573692]
[1730741634193,0.071,67895.0,67894.0,1.580692]
[1730741634396,0.072,67895.0,67894.0,1.588692]
[1730741634991,0.071,67895.0,67894.0,1.580692]
[1730741635190,0.072,67895.0,67894.0,1.587692]
[1730741637099,0.071,67895.0,67894.0,1.586692]
[1730741637402,0.072,67895.0,67894.0,1.586692]
[1730741642592,0.145691,67895.0,67894.0,1.586692]
[1730741642799,0.072,67895.0,67894.0,1.586692]
[1730741643297,0.072,67895.0,67894.0,0.086692]
[1730741643500,0.10046305,67895.0,67894.0,0.086692]
[1730741644505,0.10046324,67895.0,67894.0,0.086692]
[1730741645299,0.072,67895.0,67894.0,0.086692]
[1730741647509,0.072,67895.0,67894.0,0.14523088]
[1730741648415,0.072,67895.0,67894.0,0.086692]
[1730741648914,0.072,67895.0,67894.0,0.14523088]
[1730741649214,0.072,67895.0,67894.0,0.14544287]
[1730741649512,0.072,67895.0,67894.0,0.086692]
[1730741652218,0.072,67895.0,67894.0,0.63142891]
[1730741652416,0.0912,67907.0,67906.0,0.073679]
[1730741652803,0.0912,67907.0,67906.0,0.11774487]
[1730741653003,0.0912,67907.0,67905.0,0.04406587]
[1730741653214,0.073683,67902.0,67901.0,0.073683]
[1730741653419,0.434483,67902.0,67901.0,0.073683]
[1730741653602,0.3608,67902.0,67894.0,0.007]
[1730741653908,0.20148192,67897.0,67894.0,0.007]
[1730741654114,0.073686,67900.0,67896.0,0.073689]
[1730741654301,0.434483,67902.0,67892.0,0.0587545]
[1730741654504,0.434483,67902.0,67901.0,0.073684]
[1730741654916,0.3618,67902.0,67901.0,0.073684]
[1730741655305,0.436483,67902.0,67901.0,0.073684]
[1730741655702,0.3628,67902.0,67901.0,0.073684]
[1730741656722,0.002,67902.0,67901.0,0.073684]
[1730741657508,0.001,67902.0,67901.0,0.20147792]
[1730741657721,0.001,67902.0,67901.0,0.26023242]
[1730741658021,1e-06,67919.0,67908.0,0.073676]
[1730741658228,0.3608,67955.0,67940.0,0.073642]
[1730741658229,0.0074,67941.0,67940.0,0.073642]
[1730741658416,0.083,67944.0,67940.0,0.12779392]
[1730741658721,0.083,67944.0,67943.0,0.073638]
[1730741660309,0.03070894,67944.0,67943.0,0.073638]
[1730741660523,0.03070894,67944.0,67943.0,0.074638]
[1730741661110,0.3608,67956.0,67955.0,0.073625]
[1730741661425,0.3917499,67956.0,67955.0,0.073625]
[1730741662122,0.0847,67959.0,67952.0,0.12779392]
[1730741662308,0.03116315,67958.0,67957.0,0.073623]
[1730741662818,0.03116315,67958.0,67955.0,0.001]
[1730741662819,0.073624,67956.0,67955.0,0.001]
[1730741663012,0.39196315,67956.0,67955.0,0.074625]
[1730741663310,0.39872391,67956.0,67955.0,0.074625]
[1730741663511,0.3678,67956.0,67955.0,0.074625]
[1730741663712,0.007,67956.0,67955.0,0.074625]
[1730741665011,0.007,67956.0,67952.0,0.00606868]
[1730741665012,0.014,67958.0,67957.0,0.074623]
[1730741665518,0.007,67958.0,67957.0,0.074623]
[1730741665710,0.015,67956.0,67955.0,0.075625]
[1730741666117,0.3758,67956.0,67955.0,0.075625]
[1730741666318,0.3688,67956.0,67955.0,0.074625]
[1730741666515,0.3608,67956.0,67955.0,0.073625]
[1730741668025,0.3678,67956.0,67955.0,0.074625]
[1730741668623,0.3758,67956.0,67955.0,0.075625]
[1730741671332,0.015,67956.0,67955.0,0.075625]
[1730741672828,0.015,67956.0,67955.0,0.436425]
[1730741674031,0.008,67956.0,67955.0,0.435425]
[1730741674231,0.017,67956.0,67955.0,0.436425]
[1730741675828,0.009,67956.0,67955.0,0.435425]
[1730741676030,0.018,67956.0,67955.0,0.436425]
[1730741677134,0.018,67956.0,67955.0,0.075625]
[1730741677833,0.091624,67956.0,67955.0,0.075625]
[1730741678421,0.16755358,67956.0,67949.0,0.29035305]
[1730741678724,0.14559466,67954.0,67953.0,0.073628]
[1730741678932,0.25757732,67954.0,67953.0,0.073628]
[1730741679122,0.17633415,67954.0,67953.0,0.073628]
[1730741679326,0.11198266,67954.0,67951.0,0.12779392]
[1730741679526,0.11198266,67953.0,67952.0,0.073629]
[1730741679739,0.11198266,67953.0,67952.0,0.20142292]
[1730741680936,0.11798266,67953.0,67952.0,0.20242292]
[1730741681322,0.07279257,67953.0,67952.0,0.074629]
[1730741681523,0.11568576,67953.0,67952.0,0.074629]
[1730741681731,0.11568563,67953.0,67952.0,0.074629]
[1730741682029,0.25386353,67953.0,67952.0,0.001]
[1730741682230,0.19531363,67953.0,67952.0,0.002]
[1730741683331,0.085628,67953.0,67952.0,0.002]
[1730741684131,0.085628,67953.0,67952.0,0.075629]
[1730741685623,0.012,67953.0,67952.0,0.075629]
[1730741686734,0.012,67953.0,67952.0,0.20342292]
[1730741687235,0.012,67953.0,67952.0,0.26218494]
[1730741687636,0.012,67953.0,67952.0,0.13439102]
[1730741688232,0.012,67953.0,67952.0,0.075629]
[1730741689438,0.012,67953.0,67952.0,0.20342292]
[1730741690438,0.12167952,67953.0,67952.0,0.20342292]
[1730741690735,0.08562728,67953.0,67952.0,0.20342292]
[1730741690937,0.12167946,67953.0,67952.0,0.20342292]
[1730741692638,0.12167946,67953.0,67952.0,0.075629]
[1730741694844,0.04043823,67953.0,67952.0,0.075629]
[1730741695046,0.15011845,67953.0,67952.0,0.002]
[1730741695243,0.62955166,67953.0,67933.0,0.28714292]
[1730741695544,0.22070088,67941.0,67940.0,0.11043817]
[1730741695839,0.22070088,67941.0,67940.0,0.11654533]
[1730741695840,0.18332046,67941.0,67940.0,0.11654533]
[1730741696830,0.18332046,67941.0,67940.0,0.12154533]
[1730741697140,0.18332046,67941.0,67940.0,0.12754533]
[1730741697650,0.18432046,67941.0,67940.0,0.12254533]
[1730741697837,0.18432046,67941.0,67940.0,0.12754533]
[1730741698232,0.25006878,67941.0,67940.0,0.12754533]
[1730741698445,0.074641,67941.0,67940.0,0.22985839]
[1730741701254,0.3608,67944.0,67940.0,0.22985839]
[1730741701255,0.25023,67952.0,67951.0,0.07363]
[1730741701441,0.0884,67952.0,67951.0,0.07363]
[1730741702740,0.1702,67952.0,67951.0,0.07363]
[1730741702940,0.1752,67952.0,67951.0,0.07363]
[1730741704151,0.1802,67952.0,67951.0,0.07363]
[1730741705248,0.253829,67952.0,67948.0,0.07321129]
[1730741705450,0.073632,67949.0,67948.0,0.073633]
[1730741705945,0.1802,67952.0,67945.0,0.00750796]
[1730741706144,0.25383,67952.0,67951.0,0.07363]
[1730741706445,0.25183,67952.0,67951.0,0.07363]
[1730741706653,0.24683,67952.0,67951.0,0.07363]
[1730741707441,0.25183,67952.0,67951.0,0.07363]
[1730741708244,0.25383,67952.0,67951.0,0.07363]
[1730741709357,0.1802,67952.0,67951.0,0.07363]
[1730741713151,0.0918,67952.0,67951.0,0.07363]
[1730741713551,0.0918,67952.0,67951.0,0.14684129]
[1730741713753,0.0918,67952.0,67951.0,0.1754037]
[1730741715551,0.01,67952.0,67951.0,0.1754037]
[1730741715747,0.01,67952.0,67951.0,0.24864479]
[1730741716148,0.01,67952.0,67951.0,0.25629125]
[1730741716657,0.01,67952.0,67951.0,0.18305016]
[1730741717962,0.01,67952.0,67951.0,0.25629522]
[1730741718160,0.01,67952.0,67951.0,0.15452152]
[1730741718547,0.01,67952.0,67951.0,0.25644703]
[1730741718754,0.01,67952.0,67951.0,0.15452152]
[1730741719061,0.01,67952.0,67951.0,0.25641548]
[1730741720567,0.01,67952.0,67951.0,0.18317042]
[1730741723156,0.083629,67952.0,67951.0,0.18317042]
[1730741723555,0.01,67952.0,67951.0,0.17552396]
[1730741726468,0.01,67952.0,67951.0,0.17541704]
[1730741728667,0.01,67952.0,67951.0,0.07363]
[1730741731970,1e-06,67952.0,67951.0,0.43443]
[1730741732272,0.0103,67969.0,67966.0,0.073614]
[1730741732477,0.1681,67976.0,67969.0,0.07361]
[1730741732665,0.1681,67976.0,67969.0,1.57361]
[1730741732975,0.241703,67976.0,67969.0,1.57361]
[1730741733165,0.3686496,67980.0,67969.0,1.57361]
[1730741733474,0.12779392,67977.0,67969.0,0.07361]
[1730741733666,0.20140092,67973.0,67969.0,0.07361]
[1730741733866,0.12779392,67973.0,67969.0,0.07361]
[1730741734266,0.448409,67970.0,67969.0,0.07461]
[1730741734467,0.458409,67970.0,67969.0,0.07561]
[1730741734670,0.3848,67970.0,67969.0,0.07561]
[1730741735572,0.624809,67970.0,67969.0,0.07561]
[1730741735875,0.3848,67970.0,67969.0,0.07561]
[1730741736064,0.3848,67970.0,67969.0,0.11239147]
[1730741736264,0.458409,67970.0,67969.0,0.11239147]
[1730741741573,0.899769,67970.0,67969.0,1e-08]
[1730741741969,0.458409,67970.0,67969.0,1e-08]
[1730741743277,0.52413703,67970.0,67969.0,0.07361001]
[1730741743971,0.45052803,67970.0,67969.0,0.07361001]
[1730741744372,0.45052803,67970.0,67969.0,0.0811138]
[1730741744670,0.41447694,67970.0,67969.0,0.0811138]
[1730741745079,0.41447694,67970.0,67969.0,1e-08]
[1730741745273,0.65240256,67970.0,67969.0,1e-08]
[1730741747375,0.66023641,67970.0,67969.0,1e-08]
[1730741747580,0.62418668,67970.0,67969.0,1e-08]
[1730741747970,0.48855891,67970.0,67969.0,0.07361001]
[1730741749380,0.65240215,67970.0,67969.0,1e-08]
[1730741749879,0.69759117,67970.0,67969.0,1e-08]
[1730741750181,0.65240215,67970.0,67969.0,1e-08]
[1730741750384,1.02756292,67970.0,67969.0,1e-08]
[1730741751467,1.02756292,67970.0,67969.0,0.03678148]
[1730741753673,1.02756292,67970.0,67969.0,0.00143148]
[1730741753877,0.58620292,67970.0,67969.0,0.00143148]
[1730741754578,0.58620292,67970.0,67969.0,0.07504148]
[1730741754579,0.458409,67970.0,67969.0,0.07504148]
[1730741756475,0.58620292,67970.0,67969.0,0.00143148]